[Event "Championnat d'Europe Rapide"]
[Date "2024.12.07"]
[White "Dragicevic, Drazen"]
[Black "Saraci, Nderim"]
[WhiteElo "2332"]
[BlackElo "2431"]
[Round "5.44"]
[Result "1-0"]
[TimeControl "900+10"]

1. Nf3 {[%emt 00:00:04] [%clk 00:15:17]} d5 {[%emt 00:00:02] [%clk 00:15:17]} 2.
d4 {[%emt 00:00:07] [%clk 00:15:20]} Nf6 {[%emt 00:00:06] [%clk 00:15:20]} 3. g3
{[%emt 00:00:03] [%clk 00:15:27]} Bf5 {[%emt 00:00:05] [%clk 00:15:25]} 4. Bg2
{[%emt 00:00:02] [%clk 00:15:35]} e6 {[%emt 00:00:06] [%clk 00:15:30]} 5. O-O
{[%emt 00:00:09] [%clk 00:15:35]} h6 {[%emt 00:00:04] [%clk 00:15:36]} 6. c4
{[%emt 00:00:31] [%clk 00:15:14]} c6 {[%emt 00:00:02] [%clk 00:15:44]} 7. Qb3
{[%emt 00:00:09] [%clk 00:15:14]} Qb6 {[%emt 00:00:06] [%clk 00:15:49]} 8. c5
{[%emt 00:00:43] [%clk 00:14:42]} Qc7 {[%emt 00:00:48] [%clk 00:15:11]} 9. Bf4
{[%emt 00:00:25] [%clk 00:14:26]} Qc8 {[%emt 00:00:02] [%clk 00:15:19]} 10. Nbd2
{[%emt 00:01:33] [%clk 00:13:04]} Nbd7 {[%emt 00:00:02] [%clk 00:15:26]} 11.
Rfc1 {[%emt 00:01:25] [%clk 00:11:49]} Be7 {[%emt 00:00:17] [%clk 00:15:19]} 12.
Qc3 {[%emt 00:00:48] [%clk 00:11:11]} Ne4 {[%emt 00:00:21] [%clk 00:15:08]} 13.
Nxe4 {[%emt 00:00:04] [%clk 00:11:17]} Bxe4 {[%emt 00:00:28] [%clk 00:14:50]}
14. b4 {[%emt 00:00:22] [%clk 00:11:05]} O-O {[%emt 00:00:05] [%clk 00:14:54]}
15. a4 {[%emt 00:00:07] [%clk 00:11:08]} a6 {[%emt 00:00:11] [%clk 00:14:54]}
16. Qb2 {[%emt 00:02:33] [%clk 00:08:46]} Re8 {[%emt 00:00:45] [%clk 00:14:19]}
17. b5 {[%emt 00:00:13] [%clk 00:08:43]} Bf6 {[%emt 00:00:24] [%clk 00:14:04]}
18. Bd6 {[%emt 00:01:39] [%clk 00:07:14]} Bxf3 {[%emt 00:02:38] [%clk 00:11:35]}
19. Bxf3 {[%emt 00:00:04] [%clk 00:07:21]} e5 {[%emt 00:00:38] [%clk 00:11:07]}
20. e3 {[%emt 00:00:19] [%clk 00:07:12]} exd4 {[%emt 00:00:02] [%clk 00:11:15]}
21. exd4 {[%emt 00:00:03] [%clk 00:07:20]} Nf8 {[%emt 00:00:55] [%clk 00:10:29]}
22. bxc6 {[%emt 00:00:51] [%clk 00:06:39]} bxc6 {[%emt 00:00:02] [%clk
00:10:37]} 23. Rab1 {[%emt 00:00:02] [%clk 00:06:46]} Qf5 {[%emt 00:00:43] [%clk
00:10:04]} 24. Bg2 {[%emt 00:01:03] [%clk 00:05:54]} Ne6 {[%emt 00:00:02] [%clk
00:10:11]} 25. Be5 {[%emt 00:01:38] [%clk 00:04:27]} Bxe5 {[%emt 00:02:02] [%clk
00:08:19]} 26. dxe5 {[%emt 00:00:01] [%clk 00:04:36]} Rab8 {[%emt 00:00:33]
[%clk 00:07:56]} 27. Qxb8 {[%emt 00:00:02] [%clk 00:04:44]} Rxb8 {[%emt
00:00:01] [%clk 00:08:05]} 28. Rxb8+ {[%emt 00:00:02] [%clk 00:04:53]} Kh7
{[%emt 00:00:01] [%clk 00:08:13]} 29. Rb6 {[%emt 00:01:18] [%clk 00:03:44]} Nd4
{[%emt 00:00:38] [%clk 00:07:45]} 30. Re1 {[%emt 00:00:11] [%clk 00:03:44]} a5
{[%emt 00:00:48] [%clk 00:07:07]} 31. h4 {[%emt 00:01:21] [%clk 00:02:33]} h5
{[%emt 00:00:29] [%clk 00:06:49]} 32. Ra6 {[%emt 00:00:39] [%clk 00:02:04]} Qc2
{[%emt 00:00:37] [%clk 00:06:21]} 33. Ra7 {[%emt 00:00:12] [%clk 00:02:02]} Kg6
{[%emt 00:00:28] [%clk 00:06:03]} 34. e6 {[%emt 00:00:30] [%clk 00:01:43]} fxe6
{[%emt 00:00:17]} 35. Re5 {[%clk 00:01:49]} Kf6 {[%emt 00:00:19] [%clk
00:05:50]} 36. Rg5 {[%emt 00:00:31] [%clk 00:01:27]} g6 {[%emt 00:00:16] [%clk
00:05:45]} 37. Rxa5 {[%emt 00:00:14] [%clk 00:01:23]} Qc1+ {[%emt 00:01:03]
[%clk 00:04:52]} 38. Kh2 {[%emt 00:00:04] [%clk 00:01:29]} Nf5 {[%emt 00:01:27]
[%clk 00:03:34]} 39. Ra8 {[%emt 00:00:25] [%clk 00:01:14]} Qxc5 {[%emt 00:00:56]
[%clk 00:02:49]} 40. a5 {[%emt 00:00:18] [%clk 00:01:06]} Qxf2 {[%emt 00:01:38]
[%clk 00:01:21]} 41. a6 {[%emt 00:00:09] [%clk 00:01:08]} Qa2 {[%emt 00:00:34]
[%clk 00:00:56]} 42. Kh3 {[%emt 00:00:47] [%clk 00:00:31]} Nh6 {[%emt 00:00:51]
[%clk 00:00:15]} 43. a7 {[%emt 00:00:15] [%clk 00:00:26]} Nf7 {[%emt 00:00:13]
[%clk 00:00:12]} 44. Rxg6+ {[%emt 00:00:11] [%clk 00:00:25]} Ke5 {[%emt
00:00:01] [%clk 00:00:21]} 45. Rg7 {[%emt 00:00:13] [%clk 00:00:22]} Kf6 {[%clk
00:00:31]} 46. Rxf7+ {[%emt 00:00:07] [%clk 00:00:24]} 1-0

[Site "Europe Echecs"]

[Event "Championnat d'Europe Rapide"]
[Date "2024.12.07"]
[White "Promyshlyanskiy, Vitaliy"]
[Black "Savanovic, Aleksandar"]
[WhiteElo "2279"]
[BlackElo "2354"]
[Round "5.45"]
[Result "0-1"]
[TimeControl "900+10"]

1. e4 {[%emt 00:00:04] [%clk 00:15:17]} e5 {[%emt 00:00:03] [%clk 00:15:15]} 2.
Nf3 {[%emt 00:00:04] [%clk 00:15:26]} Nc6 {[%clk 00:15:23]} 3. Bb5 {[%emt
00:00:01] [%clk 00:15:34]} a6 {[%emt 00:00:04] [%clk 00:15:29]} 4. Ba4 {[%emt
00:00:02] [%clk 00:15:43]} Nf6 {[%emt 00:00:03] [%clk 00:15:36]} 5. Qe2 {[%emt
00:00:07] [%clk 00:15:45]} d6 {[%emt 00:00:04] [%clk 00:15:42]} 6. c3 {[%emt
00:00:15] [%clk 00:15:41]} Be7 {[%emt 00:00:04] [%clk 00:15:47]} 7. O-O {[%emt
00:00:08] [%clk 00:15:43]} O-O {[%emt 00:00:03] [%clk 00:15:54]} 8. Rd1 {[%emt
00:00:05] [%clk 00:15:48]} b5 {[%emt 00:00:54] [%clk 00:15:11]} 9. Bb3 {[%emt
00:00:02] [%clk 00:15:56]} Na5 {[%emt 00:00:03] [%clk 00:15:17]} 10. Bc2 {[%emt
00:00:02] [%clk 00:16:05]} c5 {[%emt 00:00:01] [%clk 00:15:25]} 11. d4 {[%emt
00:00:02] [%clk 00:16:13]} Qc7 {[%emt 00:00:02] [%clk 00:15:33]} 12. d5 {[%emt
00:00:03] [%clk 00:16:21]} Bd7 {[%emt 00:00:29] [%clk 00:15:13]} 13. b3 {[%emt
00:00:06] [%clk 00:16:25]} Nb7 {[%emt 00:00:14] [%clk 00:15:09]} 14. Nbd2 {[%emt
00:01:26] [%clk 00:15:09]} g6 {[%emt 00:00:02] [%clk 00:15:17]} 15. Nf1 {[%emt
00:00:09] [%clk 00:15:10]} Nh5 {[%clk 00:15:26]} 16. Bh6 {[%emt 00:00:11] [%clk
00:15:10]} Ng7 {[%clk 00:15:34]} 17. Ng3 {[%emt 00:00:49] [%clk 00:14:31]} Nd8
{[%emt 00:00:18] [%clk 00:15:27]} 18. a4 {[%emt 00:00:28] [%clk 00:14:13]} Rb8
{[%emt 00:00:03] [%clk 00:15:34]} 19. axb5 {[%emt 00:00:07] [%clk 00:14:15]}
axb5 {[%clk 00:15:43]} 20. Bd3 {[%emt 00:00:07] [%clk 00:14:19]} f6 {[%emt
00:00:03] [%clk 00:15:50]} 21. h4 {[%emt 00:01:47] [%clk 00:12:42]} Nf7 {[%emt
00:00:03] [%clk 00:15:56]} 22. Qd2 {[%emt 00:01:07] [%clk 00:11:45]} b4 {[%emt
00:01:38] [%clk 00:14:29]} 23. c4 {[%emt 00:02:01] [%clk 00:09:54]} Ra8 {[%emt
00:00:01] [%clk 00:14:37]} 24. Kh2 {[%emt 00:00:22] [%clk 00:09:42]} Bg4 {[%emt
00:02:49] [%clk 00:11:59]} 25. Be2 {[%emt 00:00:24] [%clk 00:09:27]} Ra7 {[%emt
00:03:36] [%clk 00:08:33]} 26. Bxg7 {[%emt 00:03:15] [%clk 00:06:22]} Kxg7
{[%emt 00:00:02] [%clk 00:08:41]} 27. h5 {[%emt 00:00:12] [%clk 00:06:20]} Rfa8
{[%emt 00:00:59] [%clk 00:07:52]} 28. Rxa7 {[%emt 00:00:45] [%clk 00:05:46]}
Qxa7 {[%emt 00:00:01] [%clk 00:08:00]} 29. Nd4 {[%emt 00:00:49] [%clk 00:05:07]}
exd4 {[%emt 00:00:22] [%clk 00:07:48]} 30. Bxg4 {[%emt 00:00:03] [%clk
00:05:14]} Qa2 {[%emt 00:00:08] [%clk 00:07:50]} 31. Qf4 {[%emt 00:01:03] [%clk
00:04:22]} Qxb3 {[%emt 00:00:30] [%clk 00:07:30]} 32. Be2 {[%emt 00:01:27] [%clk
00:03:04]} Ne5 {[%emt 00:01:34] [%clk 00:06:06]} 33. h6+ {[%emt 00:00:25] [%clk
00:02:50]} Kf8 {[%emt 00:00:31] [%clk 00:05:44]} 34. Nf5 {[%emt 00:01:34] [%clk
00:01:26]} Ra2 {[%emt 00:00:27] [%clk 00:05:27]} 35. Bg4 {[%emt 00:00:24] [%clk
00:01:12]} Rxf2 {[%emt 00:00:05] [%clk 00:05:32]} 36. Bf3 {[%emt 00:00:55] [%clk
00:00:28]} Qxd1 {[%emt 00:01:56] [%clk 00:03:46]} 37. Kg3 {[%emt 00:00:26] [%clk
00:00:12]} Qe1 {[%emt 00:00:30] [%clk 00:03:25]} 0-1

[Site "Europe Echecs"]

[Event "Championnat d'Europe Rapide"]
[Date "2024.12.07"]
[White "Ghimpu, Samuel-Timotei"]
[Black "Galuszka, Tomasz"]
[WhiteElo "2475"]
[BlackElo "2174"]
[Round "5.46"]
[Result "1-0"]
[TimeControl "900+10"]

1. e4 {[%emt 00:00:50] [%clk 00:14:29]} c6 {[%emt 00:00:06] [%clk 00:15:15]} 2.
d4 {[%emt 00:00:03] [%clk 00:14:37]} d5 {[%emt 00:00:01] [%clk 00:15:23]} 3. e5
{[%emt 00:00:04] [%clk 00:14:43]} Bf5 {[%emt 00:00:02] [%clk 00:15:31]} 4. Nf3
{[%emt 00:00:01] [%clk 00:14:52]} e6 {[%emt 00:00:06] [%clk 00:15:36]} 5. Be2
{[%emt 00:00:01] [%clk 00:15:00]} Nd7 {[%emt 00:00:04] [%clk 00:15:42]} 6. O-O
{[%emt 00:00:04] [%clk 00:15:05]} Ne7 {[%emt 00:00:05] [%clk 00:15:47]} 7. c3
{[%emt 00:00:17] [%clk 00:14:59]} h6 {[%emt 00:01:07] [%clk 00:14:50]} 8. Na3
{[%emt 00:00:05] [%clk 00:15:04]} Qc7 {[%emt 00:00:39] [%clk 00:14:21]} 9. Nc2
{[%emt 00:00:04] [%clk 00:15:10]} g5 {[%emt 00:00:10] [%clk 00:14:21]} 10. b4
{[%emt 00:00:43] [%clk 00:14:37]} Bg7 {[%emt 00:00:03] [%clk 00:14:28]} 11. a4
{[%emt 00:00:18] [%clk 00:14:29]} Nf8 {[%emt 00:00:28] [%clk 00:14:09]} 12. Re1
{[%emt 00:01:13] [%clk 00:13:26]} Nfg6 {[%emt 00:00:11] [%clk 00:14:09]} 13. Ne3
{[%emt 00:00:13] [%clk 00:13:23]} g4 {[%emt 00:02:01] [%clk 00:12:18]} 14. Nd2
{[%emt 00:00:16] [%clk 00:13:16]} h5 {[%emt 00:00:03] [%clk 00:12:25]} 15. b5
{[%emt 00:00:22] [%clk 00:13:05]} Nf4 {[%emt 00:00:49] [%clk 00:11:46]} 16. Bf1
{[%emt 00:00:39] [%clk 00:12:35]} Bd3 {[%emt 00:00:13] [%clk 00:11:43]} 17. bxc6
{[%emt 00:01:21] [%clk 00:11:25]} Qxc6 {[%emt 00:00:35] [%clk 00:11:18]} 18. Qb3
{[%emt 00:01:06] [%clk 00:10:29]} Bxf1 {[%emt 00:00:15] [%clk 00:11:13]} 19.
Ndxf1 {[%emt 00:00:12] [%clk 00:10:28]} Nd3 {[%emt 00:01:50] [%clk 00:09:32]}
20. Rd1 {[%emt 00:00:13] [%clk 00:10:24]} Nxc1 {[%emt 00:00:05] [%clk 00:09:38]}
21. Raxc1 {[%clk 00:10:33]} Bh6 {[%emt 00:02:27] [%clk 00:07:20]} 22. c4 {[%emt
00:00:16] [%clk 00:10:28]} dxc4 {[%emt 00:00:56] [%clk 00:06:34]} 23. Rxc4
{[%emt 00:00:45] [%clk 00:09:53]} Qd7 {[%emt 00:00:12] [%clk 00:06:32]} 24. Ng3
{[%emt 00:01:08] [%clk 00:08:55]} Kf8 {[%emt 00:02:51] [%clk 00:03:51]} 25. Ne4
{[%emt 00:00:35] [%clk 00:08:29]} Bxe3 {[%emt 00:00:26] [%clk 00:03:35]} 26.
fxe3 {[%emt 00:00:04] [%clk 00:08:35]} Nd5 {[%emt 00:00:08] [%clk 00:03:37]} 27.
Rf1 {[%emt 00:01:22] [%clk 00:07:23]} Rh7 {[%emt 00:00:18] [%clk 00:03:30]} 28.
Nd6 {[%emt 00:01:04] [%clk 00:06:28]} Kg8 {[%emt 00:00:20] [%clk 00:03:20]} 29.
e4 {[%emt 00:00:44] [%clk 00:05:54]} Nb6 {[%emt 00:02:47] [%clk 00:00:43]} 30.
Rb4 {[%emt 00:00:02] [%clk 00:06:02]} Rb8 {[%emt 00:00:02] [%clk 00:00:52]} 31.
a5 {[%emt 00:01:28] [%clk 00:04:44]} Nc8 {[%emt 00:00:03] [%clk 00:00:58]} 32.
Nxb7 {[%emt 00:00:33] [%clk 00:04:22]} Ne7 {[%emt 00:00:24] [%clk 00:00:44]} 33.
Nd6 {[%emt 00:00:14] [%clk 00:04:18]} Rxb4 {[%emt 00:00:05] [%clk 00:00:49]} 34.
Qxb4 {[%emt 00:00:01] [%clk 00:04:26]} Nc6 {[%emt 00:00:29] [%clk 00:00:31]} 35.
Qc5 {[%emt 00:00:22] [%clk 00:04:14]} g3 {[%emt 00:00:10] [%clk 00:00:31]} 36.
h3 {[%emt 00:00:28] [%clk 00:03:56]} Rg7 {[%emt 00:00:08] [%clk 00:00:33]} 37.
Rb1 {[%emt 00:00:03] [%clk 00:04:03]} Nd8 {[%emt 00:00:24] [%clk 00:00:19]} 38.
Rc1 {[%emt 00:02:13] [%clk 00:01:59]} Kh7 {[%emt 00:00:10] [%clk 00:00:19]} 39.
d5 {[%emt 00:01:44] [%clk 00:00:26]} Qa4 {[%emt 00:00:08] [%clk 00:00:21]} 40.
Qxa7 {[%emt 00:00:21] [%clk 00:00:15]} f6 {[%emt 00:00:16] [%clk 00:00:15]} 41.
Qb6 {[%emt 00:00:05] [%clk 00:00:19]} fxe5 {[%emt 00:00:07] [%clk 00:00:19]} 42.
Qxd8 {[%emt 00:00:05] [%clk 00:00:24]} exd5 {[%emt 00:00:16] [%clk 00:00:13]}
43. Nf5 {[%emt 00:00:07] [%clk 00:00:27]} Qxe4 {[%emt 00:00:04] [%clk 00:00:19]}
44. Rf1 {[%emt 00:00:12] [%clk 00:00:25]} Rb7 {[%emt 00:00:16] [%clk 00:00:13]}
45. Qg5 {[%emt 00:00:13] [%clk 00:00:22]} Qe2 {[%emt 00:00:03] [%clk 00:00:20]}
46. Ne7 {[%emt 00:00:10] [%clk 00:00:22]} 1-0

[Site "Europe Echecs"]

[Event "Championnat d'Europe Rapide"]
[Date "2024.12.07"]
[White "Aizenberg, Benny"]
[Black "Martins, Diogo Faria Oliveira"]
[WhiteElo "2425"]
[BlackElo "1961"]
[Round "5.47"]
[Result "1-0"]
[TimeControl "900+10"]

1. e4 {[%emt 00:00:04] [%clk 00:15:17]} c5 {[%clk 00:15:19]} 2. Nf3 {[%emt
00:00:02] [%clk 00:15:26]} g6 {[%emt 00:00:01] [%clk 00:15:27]} 3. d4 {[%emt
00:00:05] [%clk 00:15:32]} cxd4 {[%emt 00:00:01] [%clk 00:15:36]} 4. Nxd4 {[%emt
00:00:01] [%clk 00:15:41]} Nc6 {[%emt 00:00:02] [%clk 00:15:44]} 5. c4 {[%emt
00:00:04] [%clk 00:15:47]} Nf6 {[%emt 00:00:02] [%clk 00:15:51]} 6. Nc3 {[%emt
00:00:02] [%clk 00:15:55]} Nxd4 {[%emt 00:00:04] [%clk 00:15:57]} 7. Qxd4 {[%emt
00:00:02] [%clk 00:16:03]} d6 {[%emt 00:00:02] [%clk 00:16:06]} 8. Be3 {[%emt
00:00:04] [%clk 00:16:08]} Bg7 {[%emt 00:00:01] [%clk 00:16:14]} 9. f3 {[%emt
00:00:04] [%clk 00:16:15]} O-O {[%emt 00:00:04] [%clk 00:16:21]} 10. Qd2 {[%emt
00:00:02] [%clk 00:16:23]} a5 {[%emt 00:00:02] [%clk 00:16:29]} 11. b3 {[%emt
00:00:06] [%clk 00:16:26]} a4 {[%emt 00:00:13] [%clk 00:16:26]} 12. b4 {[%emt
00:00:06] [%clk 00:16:30]} a3 {[%emt 00:00:23] [%clk 00:16:14]} 13. Be2 {[%emt
00:00:33] [%clk 00:16:06]} Be6 {[%emt 00:00:05] [%clk 00:16:20]} 14. Rc1 {[%emt
00:00:17] [%clk 00:15:59]} Qd7 {[%emt 00:00:17] [%clk 00:16:13]} 15. O-O {[%emt
00:00:25] [%clk 00:15:44]} Rfc8 {[%emt 00:01:49] [%clk 00:14:33]} 16. Nd5 {[%emt
00:01:15] [%clk 00:14:39]} Bxd5 {[%emt 00:00:11] [%clk 00:14:33]} 17. exd5
{[%emt 00:00:16] [%clk 00:14:32]} Qa4 {[%emt 00:02:02] [%clk 00:12:41]} 18. Rfe1
{[%emt 00:02:22] [%clk 00:12:20]} Nd7 {[%emt 00:00:37] [%clk 00:12:14]} 19. c5
{[%emt 00:00:42] [%clk 00:11:49]} dxc5 {[%emt 00:00:41] [%clk 00:11:43]} 20.
bxc5 {[%emt 00:00:03] [%clk 00:11:55]} Qa5 {[%emt 00:00:40] [%clk 00:11:14]} 21.
Qxa5 {[%emt 00:00:59] [%clk 00:11:05]} Rxa5 {[%emt 00:00:02] [%clk 00:11:22]}
22. c6 {[%emt 00:00:03] [%clk 00:11:13]} bxc6 {[%emt 00:00:16] [%clk 00:11:16]}
23. dxc6 {[%emt 00:00:05] [%clk 00:11:17]} Nf6 {[%emt 00:02:31] [%clk 00:08:55]}
24. Bb6 {[%emt 00:01:16] [%clk 00:10:11]} Re5 {[%emt 00:00:56] [%clk 00:08:09]}
25. f4 {[%emt 00:01:40] [%clk 00:08:40]} Re6 {[%emt 00:00:05] [%clk 00:08:13]}
26. Bf3 {[%emt 00:00:04] [%clk 00:08:48]} Rxe1+ {[%emt 00:00:10] [%clk
00:08:13]} 27. Rxe1 {[%emt 00:00:02] [%clk 00:08:56]} e6 {[%emt 00:00:13] [%clk
00:08:11]} 28. c7 {[%emt 00:00:32] [%clk 00:08:34]} Nd5 {[%emt 00:00:23] [%clk
00:07:58]} 29. Bxd5 {[%emt 00:00:03] [%clk 00:08:40]} exd5 {[%emt 00:00:02]
[%clk 00:08:06]} 30. Re7 {[%emt 00:00:04] [%clk 00:08:46]} Bf6 {[%emt 00:02:18]
[%clk 00:05:59]} 31. Rd7 {[%emt 00:00:03] [%clk 00:08:52]} Kg7 {[%emt 00:00:09]
[%clk 00:06:00]} 32. Rd8 {[%emt 00:00:27] [%clk 00:08:36]} 1-0

[Site "Europe Echecs"]

[Event "Championnat d'Europe Rapide"]
[Date "2024.12.07"]
[White "Yuste Valenzuela, Alejandro"]
[Black "Costachi, Mihnea"]
[WhiteElo "2150"]
[BlackElo "2464"]
[Round "5.48"]
[Result "0-1"]
[TimeControl "900+10"]

1. e4 {[%emt 00:00:02] [%clk 00:15:18]} e5 {[%emt 00:00:04] [%clk 00:15:17]} 2.
Nf3 {[%emt 00:00:02] [%clk 00:15:26]} Nc6 {[%emt 00:00:04] [%clk 00:15:25]} 3.
Bc4 {[%emt 00:00:49] [%clk 00:14:44]} Bc5 {[%emt 00:00:01] [%clk 00:15:33]} 4.
d3 {[%emt 00:00:05] [%clk 00:14:50]} Nf6 {[%emt 00:00:02] [%clk 00:15:40]} 5.
Nc3 {[%emt 00:00:02] [%clk 00:14:58]} h6 {[%emt 00:00:06] [%clk 00:15:44]} 6. a3
{[%emt 00:00:17] [%clk 00:14:52]} a6 {[%emt 00:01:01] [%clk 00:14:53]} 7. Be3
{[%emt 00:00:02] [%clk 00:14:59]} d6 {[%emt 00:00:27] [%clk 00:14:36]} 8. O-O
{[%emt 00:00:17] [%clk 00:14:52]} O-O {[%emt 00:00:56] [%clk 00:13:50]} 9. h3
{[%emt 00:00:04] [%clk 00:14:59]} Re8 {[%emt 00:01:51] [%clk 00:12:08]} 10. Nd2
{[%emt 00:02:08] [%clk 00:13:00]} Nd4 {[%emt 00:00:32] [%clk 00:11:47]} 11. b4
{[%emt 00:01:21] [%clk 00:11:50]} Ba7 {[%emt 00:00:07] [%clk 00:11:50]} 12. Ne2
{[%emt 00:00:05] [%clk 00:11:54]} d5 {[%emt 00:00:27] [%clk 00:11:34]} 13. exd5
{[%emt 00:01:02] [%clk 00:11:02]} Nxd5 {[%emt 00:00:17] [%clk 00:11:26]} 14.
Bxd4 {[%emt 00:01:18] [%clk 00:09:55]} exd4 {[%emt 00:00:31] [%clk 00:11:05]}
15. Nf3 {[%emt 00:00:05] [%clk 00:10:00]} b5 {[%emt 00:00:30] [%clk 00:10:45]}
16. Bb3 {[%emt 00:00:10] [%clk 00:10:00]} Bb7 {[%emt 00:00:06] [%clk 00:10:49]}
17. Nfxd4 {[%emt 00:03:08] [%clk 00:07:01]} Nc3 {[%emt 00:04:12] [%clk
00:06:47]} 18. Nxc3 {[%emt 00:01:40] [%clk 00:05:31]} Bxd4 {[%emt 00:00:03]
[%clk 00:06:54]} 19. Ne4 {[%emt 00:01:05] [%clk 00:04:36]} Bxe4 {[%emt 00:00:42]
[%clk 00:06:22]} 20. dxe4 {[%emt 00:00:03] [%clk 00:04:43]} Bxa1 {[%emt
00:00:03] [%clk 00:06:30]} 21. Qxa1 {[%clk 00:04:51]} c6 {[%emt 00:00:47] [%clk
00:05:53]} 22. Qc3 {[%emt 00:00:25] [%clk 00:04:37]} Qf6 {[%emt 00:01:14] [%clk
00:04:49]} 23. Qxf6 {[%emt 00:01:14] [%clk 00:03:32]} gxf6 {[%emt 00:00:01]
[%clk 00:04:58]} 24. f3 {[%emt 00:00:03] [%clk 00:03:39]} a5 {[%emt 00:00:14]
[%clk 00:04:55]} 25. Kf2 {[%emt 00:00:37] [%clk 00:03:12]} a4 {[%emt 00:00:18]
[%clk 00:04:47]} 26. Ba2 {[%emt 00:00:01] [%clk 00:03:21]} Rad8 {[%clk
00:04:56]} 27. Ke3 {[%emt 00:00:08] [%clk 00:03:23]} f5 {[%emt 00:00:07] [%clk
00:04:59]} 28. g4 {[%emt 00:00:16] [%clk 00:03:17]} fxe4 {[%emt 00:00:32] [%clk
00:04:36]} 29. fxe4 {[%emt 00:00:01] [%clk 00:03:26]} Re7 {[%clk 00:04:46]} 30.
Rf6 {[%emt 00:00:09] [%clk 00:03:27]} Rd1 {[%emt 00:00:01] [%clk 00:04:54]} 31.
Rxc6 {[%emt 00:00:45] [%clk 00:02:53]} Ra1 {[%emt 00:00:55] [%clk 00:04:09]} 32.
Bd5 {[%emt 00:00:06] [%clk 00:02:56]} Rxa3+ {[%emt 00:00:02] [%clk 00:04:17]}
33. Kf4 {[%emt 00:00:03] [%clk 00:03:04]} Rxh3 {[%emt 00:00:18] [%clk 00:04:09]}
34. Ra6 {[%clk 00:03:13]} Kg7 {[%emt 00:00:34] [%clk 00:03:45]} 35. c4 {[%emt
00:00:23] [%clk 00:02:59]} bxc4 {[%emt 00:00:32] [%clk 00:03:24]} 36. Bxc4
{[%emt 00:00:02] [%clk 00:03:06]} Rc7 {[%emt 00:03:03] [%clk 00:00:31]} 37. Bd5
{[%emt 00:00:05] [%clk 00:03:12]} a3 {[%emt 00:00:02] [%clk 00:00:39]} 38. b5
{[%emt 00:00:13] [%clk 00:03:09]} Rc2 {[%emt 00:00:21] [%clk 00:00:28]} 39. Ra7
{[%emt 00:00:30] [%clk 00:02:49]} Rf2+ {[%emt 00:00:10] [%clk 00:00:28]} 40. Ke5
{[%emt 00:00:01] [%clk 00:02:58]} Rf6 {[%emt 00:00:23] [%clk 00:00:15]} 41. Kd4
{[%emt 00:02:27] [%clk 00:00:41]} Kg6 {[%emt 00:00:01] [%clk 00:00:24]} 42. Ra8
{[%emt 00:00:27] [%clk 00:00:24]} Kg5 {[%clk 00:00:33]} 43. Rg8+ {[%emt
00:00:12] [%clk 00:00:21]} Kh4 {[%emt 00:00:13] [%clk 00:00:31]} 44. Kc5 {[%emt
00:00:13] [%clk 00:00:18]} Rc3+ {[%emt 00:00:08] [%clk 00:00:32]} 45. Kd4 {[%emt
00:00:01] [%clk 00:00:27]} Rc2 {[%emt 00:00:10] [%clk 00:00:33]} 46. Ra8 {[%emt
00:00:06] [%clk 00:00:30]} Rb6 {[%emt 00:00:16] [%clk 00:00:27]} 47. Rxa3 {[%emt
00:00:18] [%clk 00:00:22]} Rxb5 {[%clk 00:00:36]} 48. Bxf7 {[%emt 00:00:07]
[%clk 00:00:26]} Kxg4 {[%emt 00:00:04] [%clk 00:00:42]} 49. Be6 {[%emt 00:00:03]
[%clk 00:00:32]} Kf4 {[%emt 00:00:06] [%clk 00:00:47]} 50. Bd5 {[%emt 00:00:05]
[%clk 00:00:37]} Rd2+ {[%emt 00:00:32] [%clk 00:00:24]} 51. Kc4 {[%emt 00:00:08]
[%clk 00:00:39]} Rdb2 {[%emt 00:00:01] [%clk 00:00:33]} 52. Rh3 {[%emt 00:00:11]
[%clk 00:00:39]} Kg5 {[%emt 00:00:17] [%clk 00:00:26]} 53. Rg3+ {[%clk
00:00:48]} Kf4 {[%emt 00:00:05] [%clk 00:00:32]} 54. Rh3 {[%clk 00:00:57]} Rb6
{[%emt 00:00:05] [%clk 00:00:37]} 55. Rh1 {[%emt 00:00:12] [%clk 00:00:53]} Rb1
{[%emt 00:00:14] [%clk 00:00:34]} 56. Rh2 {[%emt 00:00:04] [%clk 00:00:59]} Kg3
{[%emt 00:00:02] [%clk 00:00:43]} 57. Rh5 {[%emt 00:00:03] [%clk 00:01:05]} Kg4
{[%emt 00:00:03] [%clk 00:00:51]} 58. Rh2 {[%emt 00:00:03] [%clk 00:01:10]} Kg3
{[%emt 00:00:36] [%clk 00:00:26]} 59. Rh5 {[%clk 00:01:19]} Re1 {[%emt 00:00:16]
[%clk 00:00:20]} 60. Kd4 {[%emt 00:00:05] [%clk 00:01:25]} Kg4 {[%emt 00:00:03]
[%clk 00:00:26]} 61. Rh2 {[%emt 00:00:02] [%clk 00:01:34]} h5 {[%emt 00:00:03]
[%clk 00:00:33]} 62. Rg2 {[%emt 00:00:09] [%clk 00:01:34]} Kf4 {[%emt 00:00:07]
[%clk 00:00:36]} 63. Rh2 {[%emt 00:00:12] [%clk 00:01:33]} Rd1+ {[%emt 00:00:06]
[%clk 00:00:40]} 64. Kc5 {[%emt 00:00:02] [%clk 00:01:41]} Rh6 {[%clk 00:00:49]}
65. Kc4 {[%emt 00:00:48] [%clk 00:01:03]} h4 {[%emt 00:00:15] [%clk 00:00:43]}
66. Kc3 {[%emt 00:00:14] [%clk 00:00:59]} h3 {[%emt 00:00:16] [%clk 00:00:38]}
67. Kc2 {[%emt 00:00:06] [%clk 00:01:03]} Rg1 {[%emt 00:00:12] [%clk 00:00:36]}
68. Kd3 {[%emt 00:00:33] [%clk 00:00:40]} Ke5 {[%emt 00:00:19] [%clk 00:00:27]}
69. Ke3 {[%emt 00:00:05] [%clk 00:00:44]} Rf1 {[%emt 00:00:15] [%clk 00:00:22]}
70. Ke2 {[%emt 00:00:10] [%clk 00:00:44]} Rf8 {[%emt 00:00:11] [%clk 00:00:22]}
71. Ke3 {[%emt 00:00:05] [%clk 00:00:49]} Ra6 {[%emt 00:00:09] [%clk 00:00:22]}
72. Ke2 {[%emt 00:00:14] [%clk 00:00:45]} Ra3 {[%emt 00:00:12] [%clk 00:00:21]}
73. Rh1 {[%emt 00:00:07] [%clk 00:00:47]} Rb8 {[%emt 00:00:06] [%clk 00:00:25]}
74. Kd2 {[%emt 00:00:26] [%clk 00:00:32]} Rb2+ {[%emt 00:00:03] [%clk 00:00:31]}
75. Kc1 {[%clk 00:00:41]} Ra1+ {[%emt 00:00:10] [%clk 00:00:31]} 0-1

[Site "Europe Echecs"]